[Event "FRA-ch Youth U14 2018"]
[Site "Agen"]
[Date "2018.04.20"]
[Round "7"]
[White "Nguyen, Thao Nhi"]
[Black "Randrianarimanana, Alicia"]
[Result "1-0"]
[ECO "B50"]
[WhiteElo "1861"]
[BlackElo "1872"]
[Annotator "NA"]
[PlyCount "77"]
[EventDate "2018.??.??"]
[EventType "swiss"]
[EventCountry "FRA"]
[SourceTitle "playchess.com"]
[Source "ChessBase"]
[SourceQuality "1"]
[TimeControl "5400+30"]

1. e4 {[%emt 0:00:00]} c5 {[%emt 0:00:04]} 2. Nf3 {[%emt 0:00:00]} d6 {[%emt 0:00:04]} 3. Nc3 {[%emt 0:00:00]} g6 {[%emt 0:00:09]} 4. d4 {[%emt 0:00:00]} cxd4 {[%emt 0:00:07]} 5. Qxd4 {[%emt 0:00:09] LiveBook: 9 Games} Nf6 {[%emt 0:00:05]} 6. e5 {[%emt 0:00:23]} Nc6 {[%emt 0:00:40]} 7. Bb5 {[%emt 0:00:15]} Nh5 {[%emt 0:04:15] B50: Sicilian: 2...d6, Miscellaneous} (7... dxe5 8. Bxc6+ bxc6 9. Qxd8+ Kxd8 10. Nxe5 Ke8 11. f3 Bb7 12. Bd2 Bg7 13. O-O-O Nd5 14. Rhe1 Rd8 15. Na4 {1-0 (34) Akbaev,K (2470)-Chashchev,S (2376) Cherkessk 2014}) 8. exd6 {[%emt 0:07:57]} Bg7 {[%emt 0:00:19]} 9. Qc5 {[%emt 0:04:01]} Qxd6 {[%emt 0:08:33]} 10. Qxd6 {[%emt 0:01:25]} exd6 {[%emt 0:00:01]} 11. Be3 $146 {[%emt 0:01:52]} ({Predecessor:} 11. Nd5 O-O 12. Bxc6 bxc6 13. Ne7+ Kh8 14. Nxc6 Re8+ 15. Kd1 {1-0 (61) Bulmaga,I (2028)-Kurzhanskaya,V Heraklio 2004}) 11... O-O {[%emt 0:02:21]} 12. O-O-O {[%emt 0:01:12]} Rd8 {[%emt 0:02:13]} 13. Ng5 {[%emt 0:06:35]} h6 {[%emt 0:22:38]} 14. Nge4 {[%emt 0:01:25]} Bf8 {[%emt 0:00:19]} 15. Be2 {[%emt 0:03:19]} Kg7 {[%emt 0:05:24]} 16. Nd5 {[%emt 0:01:55]} f5 {[%emt 0:04:48]} 17. Nec3 {[%emt 0:01:51]} Bd7 $18 {[%emt 0:16:15]} (17... Nf6 $16 {keeps fighting.} 18. Nxf6 Kxf6 19. Nd5+ Kg7) 18. Nb5 {[%emt 0:03:43]} a6 {[%emt 0:09:20]} 19. Nxd6 {[%emt 0:04:10]} b5 {[%emt 0:09:28]} 20. Nb7 {[%emt 0:06:04]} Rdb8 {[%emt 0:01:36]} 21. Nc7 {[%emt 0:00:47]} Nf6 {[%emt 0:00:34]} 22. Nxa8 {[%emt 0:02:51]} Rxa8 {[%emt 0:00:11]} 23. Nc5 {[%emt 0:01:49]} Bc8 {[%emt 0:00:23]} 24. Bf3 {[%emt 0:00:55]} Bxc5 {[%emt 0:00:15]} 25. Bxc5 {[%emt 0:00:27]} Ne4 {[%emt 0:00:37]} 26. Be3 {[%emt 0:01:10]} Ne5 {[%emt 0:01:41]} 27. Bd4 {[%emt 0:00:35]} Kf6 {[%emt 0:00:01]} 28. Bxe4 {[%emt 0:01:02]} fxe4 {[%emt 0:00:01]} 29. f4 {[%emt 0:00:15]} exf3 {[%emt 0:00:08]} 30. Rhe1 {[%emt 0:01:17]} fxg2 {[%emt 0:00:26]} 31. Rxe5 {[%emt 0:00:24]} Kf7 {[%emt 0:00:04]} 32. Bc5 {[%emt 0:00:39]} Kf6 {[%emt 0:01:00]} 33. Re7 {[%emt 0:01:59]} Bg4 {[%emt 0:00:33]} 34. Rde1 {[%emt 0:02:13]} Rc8 {[%emt 0:02:03]} 35. Bd4+ {[%emt 0:00:20]} Kg5 {[%emt 0:00:01]} 36. R7e3 {[%emt 0:00:27]} Rf8 {[%emt 0:01:49]} 37. Rg3 {[%emt 0:01:02]} Rf1 {[%emt 0:00:11]} 38. Kd2 {[%emt 0:00:06]} Rf3 {[%emt 0:01:58]} 39. Rxg2 {[%emt 0:00:31]} 1-0

[Event "FRA-ch Youth U14 2018"]
[Site "Agen"]
[Date "2018.04.20"]
[Round "7"]
[White "Chemla, Anouk"]
[Black "Bellahcene, Sofia"]
[Result "1/2-1/2"]
[ECO "A06"]
[WhiteElo "1705"]
[BlackElo "1701"]
[Annotator "NA"]
[PlyCount "70"]
[EventDate "2018.??.??"]
[EventType "swiss"]
[EventCountry "FRA"]
[SourceTitle "playchess.com"]
[Source "ChessBase"]
[SourceQuality "1"]
[TimeControl "5400+30"]

1. Nf3 {[%emt 0:00:00]} d5 {[%emt 0:00:21]} 2. g3 {[%emt 0:00:00]} Nc6 {[%emt 0:00:35]} 3. d4 {[%emt 0:00:00]} Bg4 {[%emt 0:00:11]} 4. Bg2 {[%emt 0:00:35]} Qd7 {[%emt 0:00:47]} 5. c4 {[%emt 0:01:31]} dxc4 {[%emt 0:00:36]} 6. d5 {[%emt 0:03:11]} Bxf3 {[%emt 0:00:23]} 7. Bxf3 {[%emt 0:00:32]} Ne5 {[%emt 0:00:25]} 8. Bg2 {[%emt 0:00:42]} e6 {[%emt 0:00:34]} 9. Qd4 {[%emt 0:10:42]} Nc6 {[%emt 0:00:31]} 10. Qxc4 {[%emt 0:01:29]} exd5 {[%emt 0:00:15]} 11. Qxd5 {[%emt 0:03:41]} Bb4+ {[%emt 0:00:25]} 12. Bd2 {[%emt 0:00:53]} Bxd2+ {[%emt 0:04:52]} 13. Nxd2 {[%emt 0:08:12]} Qxd5 {[%emt 0:03:07]} 14. Bxd5 {[%emt 0:00:07]} Nge7 {[%emt 0:00:11]} 15. Bg2 {[%emt 0:01:23]} O-O-O {[%emt 0:01:35]} 16. Nb3 {[%emt 0:05:50]} Nd4 {[%emt 0:06:52]} 17. Nxd4 {[%emt 0:04:32]} Rxd4 {[%emt 0:00:20]} 18. e3 {[%emt 0:08:04]} Rd6 {[%emt 0:01:36]} 19. Ke2 {[%emt 0:08:06]} Rhd8 {[%emt 0:13:03]} 20. Rhd1 {[%emt 0:00:52]} c5 {[%emt 0:09:37]} 21. Rxd6 {[%emt 0:01:59]} Rxd6 {[%emt 0:00:44]} 22. Rc1 {[%emt 0:00:40]} b6 {[%emt 0:05:30]} 23. b4 {[%emt 0:03:28]} Rh6 {[%emt 0:05:01]} 24. bxc5 {[%emt 0:02:02]} b5 {[%emt 0:03:07]} 25. h4 {[%emt 0:01:18]} Ra6 {[%emt 0:03:34]} 26. Rc2 {[%emt 0:01:04]} Kc7 {[%emt 0:00:22]} 27. Kd3 {[%emt 0:03:07]} Ra4 {[%emt 0:02:32]} 28. Rb2 {[%emt 0:04:53]} a6 {[%emt 0:00:46]} 29. Bf3 {[%emt 0:02:34]} Ng6 {[%emt 0:04:35]} 30. Bd5 {[%emt 0:02:32]} Ne5+ {[%emt 0:01:52]} 31. Kc3 {[%emt 0:00:53]} f6 {[%emt 0:02:26]} 32. Rc2 {[%emt 0:02:06]} a5 {[%emt 0:06:23]} 33. Bb3 {[%emt 0:07:24]} Rg4 {[%emt 0:01:42]} 34. Kd2 {[%emt 0:02:38]} Kc6 {[%emt 0:01:50]} 35. Be6 {[%emt 0:03:25]} Ra4 1/2-1/2

[Event "FRA-ch Youth U14 2018"]
[Site "Agen"]
[Date "2018.04.20"]
[Round "7"]
[White "Sumarriva Paulin, Laura"]
[Black "Yuan, Beline"]
[Result "1-0"]
[ECO "E61"]
[WhiteElo "1665"]
[BlackElo "2035"]
[Annotator "NA"]
[PlyCount "73"]
[EventDate "2018.??.??"]
[EventType "swiss"]
[EventCountry "FRA"]
[SourceTitle "playchess.com"]
[Source "ChessBase"]
[SourceQuality "1"]
[TimeControl "5400+30"]

1. d4 {[%emt 0:00:00]} Nf6 {[%emt 0:00:24]} 2. c4 {[%emt 0:00:00]} g6 {[%emt 0:00:08]} 3. Nc3 {[%emt 0:00:00]} Bg7 {[%emt 0:00:18]} 4. Bg5 {[%emt 0:00:05]} d6 {[%emt 0:00:44]} 5. h3 {[%emt 0:00:29]} O-O {[%emt 0:00:27]} 6. Nf3 {[%emt 0:00:26]} Nbd7 {[%emt 0:00:46]} 7. e3 {[%emt 0:00:48]} e5 {[%emt 0:01:27]} 8. Be2 {[%emt 0:01:21]} h6 {[%emt 0:04:19]} 9. Bh4 {[%emt 0:00:25]} Re8 {[%emt 0:02:00]} 10. O-O {[%emt 0:02:12]} g5 {[%emt 0:05:14]} 11. Bg3 {[%emt 0:00:25]} e4 {[%emt 0:04:40]} 12. Nd2 {[%emt 0:02:06]} Nb6 {[%emt 0:02:11]} 13. Qc2 {[%emt 0:11:26]} Bf5 {[%emt 0:01:42]} 14. a4 {[%emt 0:16:22]} Nc8 {[%emt 0:07:51]} 15. b4 {[%emt 0:08:42]} Ne7 {[%emt 0:08:30]} 16. Qb3 {[%emt 0:10:06]} Qd7 {[%emt 0:05:46]} 17. c5 {[%emt 0:07:08]} h5 {[%emt 0:04:34]} (17... Be6 $14 18. Qb2 dxc5) 18. cxd6 $18 {[%emt 0:01:20]} Nc6 {[%emt 0:21:15]} 19. dxc7 h4 {[%emt 0:00:48]} 20. Bh2 {[%emt 0:06:44]} g4 {[%emt 0:01:04]} 21. hxg4 {[%emt 0:01:01]} Bxg4 {[%emt 0:00:15]} 22. Bc4 {[%emt 0:04:02]} Bh5 {[%emt 0:05:51]} 23. Nd5 {[%emt 0:12:59]} Ng4 {[%emt 0:11:21]} 24. Bf4 {[%emt 0:01:25]} Nf6 {[%emt 0:03:02]} 25. Nxf6+ {[%emt 0:05:58]} Bxf6 {[%emt 0:00:04]} 26. Bd5 {[%emt 0:00:49]} Qf5 {[%emt 0:03:24]} 27. Bxc6 {[%emt 0:02:34]} bxc6 {[%emt 0:00:03]} 28. Qc4 {[%emt 0:00:29]} Rac8 {[%emt 0:00:28]} 29. Qxc6 {[%emt 0:00:48]} Bxd4 {[%emt 0:00:18]} 30. Rac1 {[%emt 0:01:04]} Bf6 {[%emt 0:01:26]} 31. Qb7 {[%emt 0:00:39]} Be5 {[%emt 0:01:39]} 32. Rc5 {[%emt 0:01:11]} f6 {[%emt 0:02:00]} 33. Bxe5 {[%emt 0:00:34]} fxe5 {[%emt 0:00:51]} 34. Nxe4 {[%emt 0:00:54]} Qg6 {[%emt 0:00:17]} 35. Rxe5 {[%emt 0:00:48]} Rxe5 {[%emt 0:01:00]} 36. Qxc8+ {[%emt 0:00:06]} Re8 {[%emt 0:00:07]} 37. Qxe8+ {[%emt 0:00:25]} 1-0

[Event "FRA-ch Youth U14 2018"]
[Site "Agen"]
[Date "2018.04.21"]
[Round "8"]
[White "Boyer, Mahel"]
[Black "Ciccoli, Theo"]
[Result "1-0"]
[ECO "A57"]
[WhiteElo "2208"]
[BlackElo "2126"]
[Annotator "NA"]
[PlyCount "135"]
[EventDate "2018.??.??"]
[EventType "swiss"]
[EventCountry "FRA"]
[SourceTitle "playchess.com"]
[Source "ChessBase"]
[SourceQuality "1"]
[TimeControl "5400+30"]

1. d4 {[%emt 0:00:00]} Nf6 {[%emt 0:00:04]} 2. c4 {[%emt 0:00:00]} c5 {[%emt 0:00:10]} 3. d5 {[%emt 0:00:00]} b5 {[%emt 0:00:11]} 4. cxb5 {[%emt 0:00:00]} a6 {[%emt 0:00:04]} 5. f3 {[%emt 0:00:00]} e6 {[%emt 0:00:49]} 6. e4 {[%emt 0:00:00]} exd5 {[%emt 0:00:19]} 7. e5 {[%emt 0:00:02]} Qe7 {[%emt 0:00:26]} 8. Qe2 {[%emt 0:00:02]} Ng8 {[%emt 0:00:27]} 9. Nc3 {[%emt 0:00:02]} Bb7 {[%emt 0:00:47]} 10. Nh3 {[%emt 0:00:02]} c4 {[%emt 0:00:49] A57: Benko/Volga Gambit} 11. Nf4 {[%emt 0:00:04]} Qc5 {[%emt 0:03:06]} 12. Nfxd5 {[%emt 0:17:25]} Bxd5 {[%emt 0:01:37]} 13. Be3 {[%emt 0:00:55]} Qb4 {[%emt 0:02:57]} 14. a3 $1 {[%emt 0:00:09]} Qa5 {[%emt 0:00:19]} 15. Bd2 $1 {[%emt 0:00:08] LiveBook: 6 Games} Be6 {[%emt 0:03:24]} 16. Nd5 {[%emt 0:00:34]} Qd8 {[%emt 0:00:17]} 17. Qxc4 {[%emt 0:00:14]} Ra7 {[%emt 0:01:21]} 18. Rc1 {[%emt 0:30:09] [#]} Be7 $2 $146 {[%emt 0:35:31]} (18... Bxd5 $11 19. Qxd5 axb5) ({Predecessor:} 18... axb5) 19. Qd4 {[%emt 0:12:24]} ({And not} 19. bxa6 Rxa6 20. Nc7+ Kf8 $11) 19... Bxd5 {[%emt 0:12:02]} 20. Qxa7 {[%emt 0:00:12]} Nh6 {[%emt 0:04:46]} 21. Bd3 {[%emt 0:20:36]} O-O {[%emt 0:06:48]} 22. Qd4 {[%emt 0:06:25]} Bb7 {[%emt 0:04:04]} 23. Qa7 {[%emt 0:00:15]} Bd5 {[%emt 0:00:37]} 24. Qd4 {[%emt 0:00:09]} Bb7 {[%emt 0:00:02]} 25. O-O {[%emt 0:00:33]} axb5 {[%emt 0:02:41]} 26. Bxh6 {[%emt 0:00:39]} ({But not} 26. Bxb5 $6 Nc6 $14) 26... gxh6 {[%emt 0:01:43]} 27. Qg4+ {[%emt 0:00:05]} Kh8 {[%emt 0:01:01]} 28. Qf5 {[%emt 0:01:56]} Qb6+ {[%emt 0:00:29]} 29. Rf2 {[%emt 0:03:19]} Qg6 {[%emt 0:00:02]} 30. Qxg6 {[%emt 0:02:25]} hxg6 {[%emt 0:00:08]} 31. Bxb5 {[%emt 0:00:05]} Nc6 {[%emt 0:01:18]} 32. f4 {[%emt 0:00:16]} g5 {[%emt 0:09:13]} 33. Rd2 {[%emt 0:00:47]} Rd8 {[%emt 0:01:18]} 34. Bxc6 {[%emt 0:03:22]} Bxc6 {[%emt 0:00:01]} 35. f5 {[%emt 0:00:02]} Be4 {[%emt 0:01:55]} (35... Ra8 $11) 36. g4 {[%emt 0:02:29]} f6 {[%emt 0:04:05]} 37. e6 {[%emt 0:01:19]} d5 {[%emt 0:00:17]} 38. Rc7 {[%emt 0:00:50]} Bd6 {[%emt 0:00:20]} 39. Rd7 {[%emt 0:00:19]} Bc5+ {[%emt 0:02:21]} 40. Kf1 {[%emt 0:00:03]} Rc8 {[%emt 0:01:05]} 41. R2xd5 {[%emt 0:01:14]} Bxd5 {[%emt 0:00:27]} 42. Rxd5 {[%emt 0:00:02]} Kg8 {[%emt 0:00:37] [#]} 43. b4 $16 {[%emt 0:00:25]} (43. a4 $1 $18) 43... Be7 {[%emt 0:00:10]} 44. Ke2 {[%emt 0:00:25]} Rc4 {[%emt 0:00:58]} 45. h3 {[%emt 0:00:20]} Rc3 {[%emt 0:00:28]} 46. Rd3 {[%emt 0:00:08]} Rc2+ {[%emt 0:00:36]} 47. Kf3 {[%emt 0:00:13]} Rc4 {[%emt 0:00:21]} 48. b5 {[%emt 0:00:39]} Ra4 {[%emt 0:00:48]} 49. b6 {[%emt 0:00:43]} Rxa3 {[%emt 0:00:43]} 50. Rxa3 {[%emt 0:00:08]} Bxa3 {[%emt 0:00:01]} 51. Ke4 {[%emt 0:00:38]} Kf8 {[%emt 0:01:23]} 52. Kd5 {[%emt 0:00:09]} Ke7 {[%emt 0:00:04]} 53. Kc6 {[%emt 0:00:28]} Bd6 {[%emt 0:00:20]} 54. Kb7 {[%emt 0:00:11]} Bc5 {[%emt 0:00:39]} 55. Kc7 {[%emt 0:00:10]} Bd6+ {[%emt 0:00:54]} 56. Kc8 {[%emt 0:00:03]} Bc5 {[%emt 0:00:31]} 57. b7 {[%emt 0:00:01]} Bd6 {[%emt 0:00:15]} 58. b8=Q {[%emt 0:00:07]} Bxb8 {[%emt 0:00:01]} 59. Kxb8 {[%emt 0:00:02]} Kd8 {[%emt 0:00:03]} 60. Kb7 {[%emt 0:00:11]} Ke8 {[%emt 0:00:57]} 61. Kc8 {[%emt 0:00:22]} Ke7 {[%emt 0:00:02]} 62. Kc7 {[%emt 0:00:04]} Ke8 {[%emt 0:00:03]} 63. Kd6 {[%emt 0:00:10]} Kd8 {[%emt 0:00:04]} 64. e7+ {[%emt 0:00:04]} Ke8 {[%emt 0:00:03]} 65. Ke6 {[%emt 0:00:03]} h5 {[%emt 0:00:11]} 66. gxh5 {[%emt 0:00:08]} g4 {[%emt 0:00:01]} 67. h6 {[%emt 0:00:01]} gxh3 {[%emt 0:00:15]} 68. h7 {[%emt 0:00:04]} 1-0

[Event "FRA-ch Youth U14 2018"]
[Site "Agen"]
[Date "2018.04.21"]
[Round "8"]
[White "Lary, Damien"]
[Black "Bassini, Emile"]
[Result "0-1"]
[ECO "B90"]
[WhiteElo "2072"]
[BlackElo "2021"]
[Annotator "NA"]
[PlyCount "120"]
[EventDate "2018.??.??"]
[EventType "swiss"]
[EventCountry "FRA"]
[SourceTitle "playchess.com"]
[Source "ChessBase"]
[SourceQuality "1"]
[TimeControl "5400+30"]

1. e4 {[%emt 0:00:00]} c5 {[%emt 0:00:03]} 2. Nf3 {[%emt 0:00:00]} d6 {[%emt 0:00:03]} 3. d4 {[%emt 0:00:00]} cxd4 {[%emt 0:00:03]} 4. Nxd4 {[%emt 0:00:02]} Nf6 {[%emt 0:00:04]} 5. Nc3 {[%emt 0:00:05]} a6 {[%emt 0:00:01]} 6. Be3 {[%emt 0:00:13]} Ng4 {[%emt 0:00:04]} 7. Bg5 {[%emt 0:01:22]} h6 {[%emt 0:00:03]} 8. Bc1 {[%emt 0:01:09] B90: Sicilian Najdorf: Unusual White 6th moves, 6 Be3 Ng4 and 6 Be3 e5} Nf6 {[%emt 0:00:40]} 9. Bd3 {[%emt 0:03:06]} e5 {[%emt 0:04:16]} 10. Nde2 {[%emt 0:01:00]} Nc6 $146 {[%emt 0:01:14]} ({Find the theoretical novelty and annotate with similar games:} 10... Be7 11. O-O O-O 12. Ng3 Nbd7 13. a4 Nc5 14. Be2 Be6 15. Bf3 Rc8 {½-½ (66) Grischuk,A (2750)-Vachier Lagrave,M (2795) Moscow 2017}) 11. O-O {[%emt 0:00:50]} Be7 {[%emt 0:00:43]} 12. Ng3 {[%emt 0:02:10]} Bg4 {[%emt 0:05:56]} 13. f3 {[%emt 0:07:44]} Be6 {[%emt 0:00:13]} 14. Be3 {[%emt 0:00:45]} h5 {[%emt 0:00:36]} 15. Rf2 {[%emt 0:05:54]} h4 {[%emt 0:00:34]} 16. Nf1 {[%emt 0:00:16]} Rc8 {[%emt 0:09:35]} 17. Rd2 {[%emt 0:02:16]} g6 {[%emt 0:12:38]} 18. Bf2 {[%emt 0:07:45]} Nh5 {[%emt 0:02:03]} 19. Ne3 {[%emt 0:01:52]} Bg5 {[%emt 0:00:45]} 20. Bf1 {[%emt 0:01:47]} Nd4 {[%emt 0:02:56]} 21. Ne2 {[%emt 0:04:10]} Nxe2+ {[%emt 0:00:04]} 22. Bxe2 {[%emt 0:00:06]} Rc6 {[%emt 0:00:03]} 23. b4 {[%emt 0:00:06]} Bf4 {[%emt 0:17:30]} 24. b5 {[%emt 0:26:48]} Rb6 {[%emt 0:03:28]} 25. Nd5 {[%emt 0:07:42]} Bxd2 {[%emt 0:00:30]} 26. Bxb6 {[%emt 0:08:46]} Qg5 {[%emt 0:01:01]} 27. f4 {[%emt 0:00:06]} Bxf4 {[%emt 0:02:34]} 28. Bxh5 {[%emt 0:05:00]} Bxd5 {[%emt 0:06:43]} 29. Bg4 {[%emt 0:02:10]} Be3+ {[%emt 0:01:35]} 30. Bxe3 {[%emt 0:00:09]} Qxe3+ {[%emt 0:00:03]} 31. Kh1 {[%emt 0:00:05]} Bxe4 {[%emt 0:01:43]} 32. Qxd6 {[%emt 0:01:08]} Bxg2+ {[%emt 0:06:43]} 33. Kxg2 {[%emt 0:00:02]} h3+ {[%emt 0:00:02]} 34. Kf1 {[%emt 0:00:11]} Qf4+ {[%emt 0:00:06]} 35. Ke1 {[%emt 0:00:11]} Qxg4 {[%emt 0:00:12]} 36. Qxe5+ {[%emt 0:06:41]} Qe6 {[%emt 0:00:02]} 37. Qxe6+ {[%emt 0:00:06]} fxe6 {[%emt 0:00:01]} 38. bxa6 {[%emt 0:00:06]} bxa6 {[%emt 0:00:10]} 39. Kf2 {[%emt 0:00:04]} Ke7 {[%emt 0:01:54]} 40. c4 {[%emt 0:00:47]} Rh4 {[%emt 0:00:58]} 41. Kg3 {[%emt 0:02:37]} Rxc4 {[%emt 0:00:06]} 42. Kxh3 {[%emt 0:00:03]} Ra4 {[%emt 0:02:55]} 43. Kg3 {[%emt 0:01:27]} e5 {[%emt 0:00:34]} 44. Re1 {[%emt 0:01:24]} Ke6 {[%emt 0:03:10]} 45. Re2 {[%emt 0:00:04]} a5 {[%emt 0:00:09]} 46. Kf2 {[%emt 0:02:46]} Kf5 {[%emt 0:00:11]} 47. Rc2 $19 {[%emt 0:01:28]} g5 {[%emt 0:01:17]} 48. Kg2 {[%emt 0:00:21]} Ra3 {[%emt 0:00:15]} 49. Kf2 {[%emt 0:00:18]} a4 {[%emt 0:00:23]} 50. Kg2 {[%emt 0:00:15]} e4 {[%emt 0:00:10]} 51. Rf2+ {[%emt 0:01:03]} Ke5 {[%emt 0:00:56]} 52. Re2 {[%emt 0:00:38]} g4 {[%emt 0:00:33]} 53. Kf2 {[%emt 0:00:20]} Kd4 {[%emt 0:02:35]} 54. Rd2+ {[%emt 0:00:21]} Rd3 {[%emt 0:00:15]} 55. Rb2 {[%emt 0:00:23]} a3 {[%emt 0:00:15]} 56. Rb4+ {[%emt 0:01:01]} Ke5 {[%emt 0:00:06]} 57. Ke2 {[%emt 0:00:34]} Rh3 {[%emt 0:00:08]} 58. Rb5+ {[%emt 0:00:12]} Kf4 {[%emt 0:00:12]} 59. Rb8 {[%emt 0:00:46]} Rxh2+ {[%emt 0:00:06]} 60. Kf1 {[%emt 0:00:05]} Rxa2 {[%emt 0:00:14]} 0-1

[Event "FRA-ch Youth U14 2018"]
[Site "Agen"]
[Date "2018.04.21"]
[Round "8"]
[White "Papadiamandis, Elliot"]
[Black "Popov, Konstantin"]
[Result "0-1"]
[ECO "B43"]
[WhiteElo "2016"]
[BlackElo "2150"]
[Annotator "NA"]
[PlyCount "112"]
[EventDate "2018.??.??"]
[EventType "swiss"]
[EventCountry "FRA"]
[SourceTitle "playchess.com"]
[Source "ChessBase"]
[SourceQuality "1"]
[TimeControl "5400+30"]

1. e4 {[%emt 0:00:00]} c5 {[%emt 0:00:10]} 2. Nf3 {[%emt 0:00:00]} e6 {[%emt 0:00:32]} 3. d4 {[%emt 0:00:00]} cxd4 {[%emt 0:00:11]} 4. Nxd4 {[%emt 0:00:07]} a6 {[%emt 0:00:32]} 5. Nc3 {[%emt 0:00:18]} Qc7 {[%emt 0:00:43]} 6. Bd3 {[%emt 0:00:29]} Nc6 {[%emt 0:01:04]} 7. Nxc6 {[%emt 0:00:23]} dxc6 {[%emt 0:00:51]} 8. O-O {[%emt 0:01:07]} e5 {[%emt 0:01:22]} 9. f4 {[%emt 0:07:43]} Nf6 {[%emt 0:04:08]} 10. Kh1 {[%emt 0:02:07]} Be7 {[%emt 0:01:16] B43: Sicilian: Kan Variation: 5 Nc3} (10... Bd6 11. f5 b5 12. a4 Bb7 13. Be3 h5 14. axb5 axb5 15. Rxa8+ Bxa8 16. Bxb5 Bb4 17. Nd5 Nxd5 18. Qxd5 {1-0 (33) Najer,E (2682)-Artemiev,V (2682) Sochi 2017}) 11. f5 {[%emt 0:03:01]} b5 {[%emt 0:03:51]} 12. Qf3 {[%emt 0:01:17]} Bb7 {[%emt 0:12:18]} 13. a4 {[%emt 0:03:40]} h5 $146 {[%emt 0:20:10]} ({Predecessor:} 13... h6 14. b3 Bc5 15. Ne2 Qe7 16. Qg3 Kf8 17. Bb2 Re8 18. Qf3 {1-0 (44) Papp,G (2190)-Lehoczki,V (2180) Hungary 1998}) 14. b3 {[%emt 0:08:23]} h4 {[%emt 0:00:00]} 15. Nd1 {[%emt 0:03:20]} Rd8 {[%emt 0:08:29]} 16. Nf2 {[%emt 0:05:03]} Bc5 {[%emt 0:03:34]} 17. Ng4 {[%emt 0:09:06]} Bd4 {[%emt 0:06:21]} 18. Ra2 {[%emt 0:01:23]} Qb6 {[%emt 0:02:12]} 19. Nxf6+ {[%emt 0:05:15]} gxf6 {[%emt 0:00:07]} 20. Bd2 {[%emt 0:01:36]} Qc5 {[%emt 0:09:58]} 21. axb5 {[%emt 0:01:58]} axb5 {[%emt 0:00:52]} 22. b4 {[%emt 0:05:15]} Qd6 {[%emt 0:00:36]} 23. Rd1 {[%emt 0:04:34]} Ke7 {[%emt 0:02:49]} 24. c3 {[%emt 0:01:30]} Bb6 {[%emt 0:00:33]} 25. Be3 {[%emt 0:02:11]} c5 {[%emt 0:06:03]} 26. Bc2 {[%emt 0:01:34]} Qc6 {[%emt 0:02:42]} 27. Rda1 {[%emt 0:02:42]} cxb4 {[%emt 0:01:51]} 28. cxb4 {[%emt 0:00:31]} Ra8 {[%emt 0:00:39]} 29. Bxb6 {[%emt 0:02:23]} Rxa2 {[%emt 0:00:38]} 30. Rxa2 {[%emt 0:00:07]} Qxb6 {[%emt 0:00:06]} 31. Bd3 {[%emt 0:06:06]} Rc8 {[%emt 0:01:50]} 32. Ra1 {[%emt 0:07:48]} Qd4 {[%emt 0:00:48]} 33. Rd1 {[%emt 0:00:10]} Qxb4 {[%emt 0:01:10]} 34. Qf2 {[%emt 0:00:26]} Bxe4 {[%emt 0:01:20]} 35. Bxe4 {[%emt 0:00:13]} Qxe4 {[%emt 0:00:11]} 36. Qb6 {[%emt 0:00:09]} Qc6 {[%emt 0:01:28]} 37. Qa7+ {[%emt 0:02:09]} Ke8 {[%emt 0:00:48]} 38. h3 {[%emt 0:01:49]} Ra8 {[%emt 0:00:16]} 39. Qf2 {[%emt 0:00:00]} Ra4 {[%emt 0:00:35]} 40. Qe3 {[%emt 0:01:25]} Ra2 {[%emt 0:00:16]} 41. Rg1 {[%emt 0:00:31]} Ke7 {[%emt 0:01:15]} 42. Qb3 {[%emt 0:00:33]} Rc2 {[%emt 0:00:30]} 43. Qb4+ {[%emt 0:00:05]} Qc5 $19 {[%emt 0:00:16]} 44. Qe4 {[%emt 0:03:22]} Rc1 {[%emt 0:00:14]} 45. Qb7+ {[%emt 0:00:04]} Kf8 {[%emt 0:00:11]} 46. Rxc1 {[%emt 0:00:10]} Qxc1+ {[%emt 0:00:05]} 47. Kh2 {[%emt 0:00:04]} Qc4 {[%emt 0:00:13]} 48. Qb8+ {[%emt 0:00:35]} Kg7 {[%emt 0:00:05]} 49. Qd6 {[%emt 0:00:17]} b4 {[%emt 0:00:05]} 50. Qd1 {[%emt 0:00:16]} b3 {[%emt 0:00:08]} 51. Qb1 {[%emt 0:00:21]} Qc3 {[%emt 0:00:09]} 52. Qd1 {[%emt 0:00:09]} b2 {[%emt 0:00:24]} 53. Qg4+ {[%emt 0:00:23]} Kf8 {[%emt 0:00:07]} 54. Qe4 {[%emt 0:00:16]} Qd4 {[%emt 0:00:06]} 55. Qa8+ {[%emt 0:00:19]} Kg7 {[%emt 0:00:05]} 56. Qb7 {[%emt 0:00:23]} Qf4+ {[%emt 0:00:05]} 0-1